bitfinex-derivatives/quotes_ETHF0:USTF0_20251204
["timestamp","ask_amount","ask_price","bid_price","bid_amount"]
[1764882015064,3.2078,3137.7,3137.2,0.15932]
[1764882015271,3.21043327,3137.7,3137.2,0.16311896]
[1764882015868,1.9452,3137.3,3137.2,0.16311896]
[1764882016470,1.9452,3137.3,3137.2,2.18811896]
[1764882016870,3.8983,3137.3,3137.2,2.18811896]
[1764882017073,3.8983,3137.3,3137.2,0.16311896]
[1764882018269,3.8983,3137.3,3136.9,3.2078]
[1764882018473,3.21043327,3137.7,3137.4,2.025]
[1764882018670,1.9452,3137.5,3137.4,2.025]
[1764882018970,3.8983,3137.4,3137.3,0.15932]
[1764882019375,3.8983,3137.4,3137.3,0.1620649]
[1764882020168,5.0784,3137.0,3136.9,3.2078]
[1764882020373,3.8983,3136.7,3136.6,0.15936]
[1764882021275,3.8983,3136.7,3136.6,0.16280599]
[1764882022076,3.2078,3137.0,3136.9,4.1834]
[1764882022276,3.2078,3137.4,3136.9,4.1834]
[1764882022981,1.9452,3137.3,3137.2,2.18433]
[1764882023377,3.8983,3137.3,3137.2,2.18433]
[1764882023679,3.8983,3137.3,3136.7,0.15935]
[1764882023980,3.2078,3137.0,3136.9,2.025]
[1764882024377,5.153,3137.0,3136.9,2.025]
[1764882024777,3.2078,3137.0,3136.9,4.34274]
[1764882025172,4.3879,3137.5,3136.9,4.34274]
[1764882025373,3.2078,3137.1,3136.9,4.34274]
[1764882025977,3.2078,3137.1,3137.0,2.025]
[1764882026782,3.2078,3137.1,3137.0,4.1834]
[1764882026976,3.2078,3137.1,3137.0,4.34274]
[1764882027187,3.2078,3137.5,3137.4,2.1584]
[1764882027486,3.2078,3137.5,3137.4,4.1834]
[1764882027982,1.94783327,3137.7,3137.6,2.025]
[1764882028177,0.00263327,3137.7,3137.6,4.1834]
[1764882028570,0.00263327,3137.7,3137.6,4.34271]
[1764882031385,1.94783327,3137.7,3137.6,2.18431]
[1764882032487,0.00263327,3137.7,3137.6,4.34271]
[1764882034583,3.2078,3138.8,3138.4,0.15926]
[1764882034777,3.2078,3138.8,3138.7,2.0467]
[1764882034983,3.2078,3138.8,3138.7,4.0934]
[1764882035376,3.2078,3138.8,3138.7,4.25265]
[1764882035575,3.21024602,3138.8,3138.7,4.25265]
[1764882037084,3.21024602,3138.8,3138.4,4.09817912]
[1764882037290,0.00244602,3138.8,3138.7,4.25265]
[1764882037879,0.00244602,3138.8,3138.7,4.50452325]
[1764882038082,0.00244602,3138.8,3138.7,4.25265]
[1764882038983,3.2078,3139.7,3139.6,4.079]
[1764882039183,1.2322,3140.5,3140.4,4.079]
[1764882039390,5.2919,3140.5,3140.4,0.15917]
[1764882039578,5.2919,3140.5,3140.0,3.2078]
[1764882039579,2.0275,3140.1,3140.0,3.2078]
[1764882039779,2.0275,3140.1,3140.0,5.2473]
[1764882040092,0.00403259,3140.1,3140.0,5.25080151]
[1764882040291,4.06373259,3140.1,3140.0,0.00350151]
[1764882040986,2.03153259,3140.1,3140.0,0.00350151]
[1764882041186,2.03153259,3140.1,3140.0,2.04300151]
[1764882041388,2.03153259,3140.1,3140.0,0.00350151]
[1764882042284,0.00403259,3140.1,3140.0,4.08250151]
[1764882043386,2.03153259,3140.1,3140.0,0.00350151]
[1764882043783,4.25143259,3140.1,3140.0,0.00350151]
[1764882044288,2.03153259,3140.1,3140.0,2.16460151]
[1764882044489,0.00403259,3140.1,3140.0,4.24990151]
[1764882045686,1.3142,3140.0,3139.8,0.1592]
[1764882046687,1.3142,3140.0,3139.8,0.16143107]
[1764882047088,3.423,3140.0,3139.9,2.1611]
[1764882047391,2.1088,3139.9,3139.8,0.16143107]
[1764882047590,4.3287,3139.9,3139.8,0.16143107]
[1764882048792,2.1088,3139.9,3139.8,2.32253107]
[1764882049298,4.3287,3139.9,3139.8,2.32253107]
[1764882049692,4.3287,3139.9,3139.8,0.16143107]
[1764882049897,4.3287,3139.9,3139.8,0.00223107]
[1764882050196,7.5365,3139.9,3139.8,0.00223107]
[1764882050395,4.3287,3139.2,3139.1,0.15923]
[1764882050595,1.3142,3139.5,3138.7,3.2078]
[1764882050596,4.3287,3138.8,3138.7,3.2078]
[1764882050990,4.3287,3138.8,3138.7,3.36705]
[1764882051498,1.2322,3140.5,3140.0,4.40559]
[1764882051799,4.33347912,3140.4,3140.3,0.15917]
[1764882052298,2.11357912,3140.4,3140.3,0.15917]
[1764882052795,0.00770727,3140.4,3140.3,4.40557]
[1764882055302,2.11650727,3140.4,3140.3,2.32027]
[1764882055499,0.00770727,3140.4,3140.3,4.40557]
[1764882057301,2.11650727,3140.4,3140.3,2.32027]
[1764882057501,0.00770727,3140.4,3140.3,4.40557]
[1764882058100,4.522,3142.0,3141.0,0.6146]
[1764882058397,3.2078,3142.4,3141.5,3.8224]
[1764882058599,3.2078,3142.4,3141.9,0.15909]
[1764882058991,3.21021856,3142.4,3141.9,0.16135163]
[1764882060911,3.21021856,3142.4,3141.9,4.40775163]
[1764882061103,0.00241856,3142.4,3141.9,7.61555163]
[1764882061414,2.1088,3142.0,3141.9,5.53025163]
[1764882061610,0.00241856,3142.4,3141.9,5.53025163]
[1764882065507,0.00241856,3142.4,3141.9,3.36915163]
[1764882065508,5.3666,3142.0,3141.9,3.36915163]
[1764882066217,4.2965,3142.2,3142.1,0.15908]
[1764882066607,0.00241856,3142.4,3141.9,3.21006163]
[1764882066608,0.00241856,3142.4,3142.3,1.8934]
[1764882066813,0.00241856,3142.4,3142.3,3.94587]
[1764882067214,0.00477912,3142.5,3142.4,0.15906]
[1764882067413,5.8058,3143.8,3143.0,0.15903]
[1764882067611,3.2078,3143.8,3143.1,0.15903]
[1764882067814,40.8,3143.7,3143.1,0.15903]
[1764882068220,1.31651627,3143.5,3143.1,0.15903]
[1764882068712,4.2965,3142.9,3142.8,3.2078]
[1764882068919,4.2965,3142.9,3142.4,3.36686]
[1764882069520,4.2965,3142.9,3142.5,0.15906]
[1764882069720,4.2965,3142.9,3142.6,0.15905]
[1764882070019,4.2965,3142.9,3142.0,0.4663]
[1764882070020,1.31651627,3143.5,3143.0,0.15903]
[1764882070416,4.2965,3143.1,3143.0,0.15903]
[1764882070618,4.2965,3142.4,3142.3,3.36687]
[1764882070811,4.2965,3142.4,3142.3,3.2078]
[1764882071015,5.4857,3142.0,3141.8,0.00477912]
[1764882071720,4.2965,3141.9,3141.8,0.00477912]
[1764882072530,4.2965,3141.9,3141.8,0.00804309]
[1764882073122,2.2279,3141.9,3141.8,0.00804309]
[1764882073326,4.2965,3141.9,3141.8,0.00804309]
[1764882074021,1.1892,3141.5,3140.9,7.57974]
[1764882074218,3.2078,3141.5,3141.4,4.2128]
[1764882074523,4.2965,3141.4,3141.3,0.15912]
[1764882075126,4.2965,3141.4,3141.3,0.16244899]
[1764882075425,4.2965,3141.4,3141.3,0.00332899]
[1764882075620,4.2965,3140.7,3140.6,0.15915]
[1764882076526,4.29996247,3140.7,3140.6,0.16295747]
[1764882076922,4.29996247,3140.7,3140.6,0.00380747]
[1764882077122,2.23136247,3140.7,3140.6,2.1607]
[1764882077320,0.00346247,3140.7,3140.6,4.2128]
[1764882077519,0.00346247,3140.7,3140.6,4.37196]
[1764882077725,2.23136247,3140.7,3140.6,4.37196]
[1764882077927,0.00346247,3140.7,3140.6,4.37196]
[1764882080133,0.0026346,3141.3,3141.2,4.37192]
[1764882082531,0.0026346,3141.3,3141.2,7.57972]
[1764882082735,0.0026346,3141.3,3141.2,4.37192]
[1764882083729,7.5069346,3141.3,3140.6,0.00228883]
[1764882084235,3.2078,3140.9,3140.6,0.00228883]
[1764882084528,7.5043,3140.9,3140.8,0.15915]
[1764882084721,2.2279,3140.7,3140.6,0.00228883]
[1764882084924,4.2965,3140.7,3140.6,0.00228883]
[1764882085634,4.2965,3140.7,3139.5,0.15921]
[1764882085635,4.2965,3139.6,3139.5,0.15921]
[1764882085837,3.2078,3139.9,3139.8,4.2128]
[1764882086331,4.2965,3139.8,3139.7,0.1592]
[1764882086531,4.2965,3139.8,3139.7,0.16181329]
[1764882087134,3.2078,3139.9,3139.0,2.31994]
[1764882087329,3.2078,3139.9,3138.8,0.24878891]
[1764882087330,2.2279,3138.9,3138.8,2.40948891]
[1764882087529,4.397,3139.5,3138.8,2.40948891]
[1764882087530,3.2078,3139.5,3139.4,4.37202]
[1764882087725,0.00477912,3140.1,3140.0,2.0521]
[1764882087931,4.30127912,3140.1,3139.5,0.15921]
[1764882088130,0.00795754,3140.1,3139.9,2.1607]
[1764882088634,0.00795754,3140.1,3140.0,2.1607]
[1764882089630,2.23585754,3140.1,3140.0,2.1607]
[1764882090028,2.23585754,3140.1,3139.9,0.15919]
[1764882090435,4.2965,3140.0,3139.9,0.15919]
[1764882091030,4.2965,3139.6,3139.5,0.00278936]
[1764882093845,2.2279,3139.0,3138.9,0.15924]
[1764882094345,2.2279,3139.0,3138.9,2.07804]
[1764882094846,2.2279,3139.0,3138.9,2.08033539]
[1764882095043,3.2078,3139.3,3138.9,4.17633539]
[1764882095441,3.2078,3139.3,3139.2,1.9188]
[1764882095745,3.2078,3139.3,3139.2,4.17403]
[1764882095948,7.2646,3139.3,3139.2,0.15923]
[1764882099639,7.2646,3139.3,3138.9,0.00229539]
[1764882099640,5.2335,3139.0,3138.9,0.00229539]
[1764882102046,3.2078,3139.3,3139.2,4.0148]
[1764882102345,3.2078,3139.3,3139.2,4.17403]
[1764882102552,5.1682,3139.3,3139.2,4.17403]
[1764882102849,3.2078,3139.3,3139.2,4.17403]
[1764882103350,0.00795754,3140.1,3140.0,4.10749]
[1764882103940,1.0941,3140.0,3139.4,3.2078]
[1764882104139,2.0151,3140.0,3139.9,1.9661]
[1764882104544,3.9936,3140.0,3139.7,0.1592]
[1764882104736,3.9936,3139.8,3139.7,0.1592]
[1764882104939,7.2014,3139.8,3139.7,0.1592]
[1764882105541,2.0151,3139.5,3139.4,3.2078]
[1764882105845,5.1863,3139.8,3139.3,0.15922]
[1764882105846,3.2078,3139.8,3139.3,2.12532]
[1764882106042,3.9936,3139.6,3139.5,0.15921]
[1764882108447,2.0151,3139.6,3139.5,2.12531]
[1764882108647,3.2078,3139.8,3139.5,4.10751]
[1764882108848,2.0151,3139.6,3139.5,2.12531]
[1764882109349,2.0151,3139.6,3139.5,0.15921]
[1764882109350,3.9936,3139.6,3139.5,0.15921]
[1764882110441,3.2078,3139.8,3139.6,0.1592]
[1764882110647,3.2078,3139.8,3139.7,4.1075]
[1764882110851,0.00795754,3140.1,3139.8,0.15919]
[1764882111256,2.0151,3139.9,3139.8,2.12529]
[1764882111653,0.00795754,3140.1,3140.0,3.9483]
[1764882113149,0.00795754,3140.1,3140.0,4.10749]
[1764882117954,3.2078,3140.8,3140.4,3.9483]
[1764882118157,7.2014,3140.8,3140.7,1.9661]
[1764882118555,7.2014,3140.8,3140.4,0.15916]
[1764882119066,7.20461536,3140.8,3140.4,0.15916]
[1764882119764,2.01831536,3140.8,3140.7,4.10745]
[1764882121063,3.99681536,3140.8,3140.7,2.12525]
[1764882121361,3.99681536,3140.8,3140.7,4.10745]
[1764882122058,3.99681536,3140.8,3140.7,2.12525]
[1764882122454,5.0877,3140.5,3140.4,3.2078]
[1764882123965,5.0877,3140.5,3140.4,5.1739]
[1764882124165,3.938,3139.8,3139.7,0.1592]
[1764882124667,1.9763,3139.4,3139.3,7.0965]
[1764882124873,1.9763,3139.4,3139.3,7.25572]
[1764882125167,4.0335,3140.0,3139.3,7.25572]
[1764882125367,5.1841,3139.6,3139.5,2.0015]
[1764882125563,3.938,3139.4,3139.3,0.15922]
[1764882126069,3.938,3139.4,3139.3,2.16072]
[1764882126460,1.9763,3139.4,3139.3,4.04792]
[1764882126858,3.938,3139.4,3138.9,3.21009539]
[1764882127065,3.938,3139.0,3138.9,0.00229539]
[1764882127568,3.938,3139.0,3138.9,2.00379539]
[1764882128070,3.938,3139.0,3138.9,0.00229539]
[1764882128366,5.1147,3139.0,3138.9,0.00229539]
[1764882128570,5.1147,3139.0,3138.5,3.8887]
[1764882128571,1.9763,3138.6,3138.5,3.8887]
[1764882128867,1.1767,3139.0,3138.5,5.26436]
[1764882129571,1.18015444,3139.0,3138.5,5.26758931]
[1764882130966,0.00345444,3139.0,3138.5,5.26758931]
[1764882132268,0.00345444,3139.0,3138.9,4.04794]
[1764882133065,0.00477912,3139.3,3139.2,4.04793]
[1764882134167,0.00780472,3139.3,3139.2,4.04793]
[1764882135071,3.94580472,3139.3,3139.2,2.16073]
[1764882135457,1.98410472,3139.3,3139.2,4.04793]
[1764882136367,15.9926024,3145.8,3139.2,4.04793]
[1764882136368,3.2078,3141.3,3140.7,1.8872]
[1764882136569,3.2078,3141.3,3140.0,1.2164]
[1764882136570,3.938,3140.8,3140.0,4.4242]
[1764882136870,3.938,3140.8,3140.3,0.15917]
[1764882137269,1.9763,3140.4,3140.3,2.16397234]
[1764882137475,0.00365372,3140.8,3140.3,4.05117234]
[1764882138365,3.938,3140.4,3140.3,0.00330234]
[1764882140267,3.938,3139.9,3139.8,0.1592]
[1764882140465,7.1458,3139.9,3139.8,0.1592]
[1764882141270,7.1458,3139.9,3139.8,0.16307411]
[1764882141669,7.1458,3139.9,3139.8,4.05177411]
[1764882141875,7.1458,3139.9,3139.8,2.16457411]
[1764882144175,5.1841,3140.3,3140.2,3.8887]
[1764882144373,3.2078,3140.3,3140.2,3.8887]
[1764882145768,3.2078,3140.3,3140.2,4.04788]
[1764882145973,0.00365372,3140.8,3140.0,1.2164]
[1764882145974,3.2078,3140.7,3140.5,1.2164]
[1764882146280,3.2078,3140.7,3140.6,4.04786]
[1764882147876,0.00365372,3140.8,3140.7,3.8887]
[1764882148081,0.00365372,3140.8,3140.7,4.04785]
[1764882150678,1.97995372,3140.8,3140.7,4.04785]
[1764882150974,3.94165372,3140.8,3140.7,2.16065]
[1764882151671,3.94165372,3140.8,3140.7,4.04785]
[1764882152382,0.00365372,3140.8,3140.7,4.04785]
[1764882153873,1.97995372,3140.8,3140.7,4.04785]
[1764882154180,3.91125372,3140.8,3140.7,4.04785]
[1764882154674,3.91125372,3140.8,3140.7,2.16065]
[1764882156574,3.91125372,3140.8,3140.7,4.05795]
[1764882157776,3.91125372,3140.8,3140.7,2.16065]
[1764882158275,3.91125372,3140.8,3140.7,4.05795]
[1764882160471,3.91125372,3140.8,3140.7,0.15915]
[1764882161380,2.0253,3139.9,3139.8,7.23447411]
[1764882161675,3.9566,3139.9,3139.8,0.16307411]
[1764882161880,3.9566,3139.9,3139.5,1.2164]
[1764882162082,3.9566,3139.9,3139.2,0.15922]
[1764882162083,3.9566,3139.3,3139.2,4.02282]
[1764882162385,3.2078,3139.7,3139.2,4.02282]
[1764882162582,7.1644,3139.7,3139.2,0.15922]
[1764882162977,7.1644,3139.7,3139.2,0.16262869]
[1764882163776,1.7681,3139.3,3139.2,3.84922869]
[1764882164174,6.7382,3139.3,3139.2,0.16262869]
[1764882165182,3.2078,3139.3,3139.2,3.84922869]
[1764882165386,3.2078,3139.7,3139.5,1.1474]
[1764882165585,3.2078,3139.7,3139.6,3.6866]
[1764882165776,3.2078,3139.7,3139.6,3.84581]
[1764882166182,3.2078,3140.1,3139.6,3.84581]
[1764882167581,40.8,3140.4,3139.7,0.1592]
[1764882167879,40.8,3140.4,3139.5,1.1474]
[1764882167880,4.9759,3140.5,3140.4,3.6866]
[1764882168087,3.21257912,3140.9,3140.7,3.6866]
[1764882168686,3.21257912,3140.9,3140.7,3.84575]
[1764882169283,1.77175372,3140.8,3140.7,3.84575]
[1764882169486,3.53405372,3140.8,3140.7,0.15915]
[1764882170586,3.53405372,3140.8,3140.7,2.02025]
[1764882171391,1.77175372,3140.8,3140.7,3.84575]
[1764882171593,3.53405372,3140.8,3140.7,3.84575]
[1764882172693,1.77175372,3140.8,3140.7,3.84575]
[1764882173884,3.53405372,3140.8,3140.7,3.84575]
[1764882174193,3.53405372,3140.8,3140.7,0.15915]
[1764882174395,3.53405372,3140.8,3140.7,2.02025]
[1764882174890,3.53405372,3140.8,3140.7,3.84575]
[1764882175791,3.53405372,3140.8,3140.7,2.02025]
[1764882176395,3.53405372,3140.8,3140.7,0.15915]
[1764882176788,1.77175372,3140.8,3140.7,3.6866]
[1764882177093,0.00365372,3140.8,3140.7,3.84575]
[1764882177591,12.693,3141.4,3140.5,4.3552]
[1764882177592,3.2078,3141.4,3141.3,3.6866]
[1764882178496,4.97925999,3141.4,3141.3,3.6866]
[1764882178694,6.74155999,3141.4,3141.3,1.8611]
[1764882179395,4.97925999,3141.4,3141.3,3.6866]
[1764882180597,3.21115999,3141.4,3141.3,3.84572]
[1764882180797,0.00335999,3141.4,3141.3,3.84572]
[1764882180988,0.00335999,3141.4,3141.3,7.05352]
[1764882181892,3.53375999,3141.4,3141.3,3.2078]
[1764882182097,3.5304,3140.9,3140.8,3.6866]
[1764882182297,1.7681,3140.9,3140.8,3.6866]
[1764882182796,3.5304,3140.7,3140.6,2.02025]
[1764882182993,3.5304,3140.7,3140.6,0.15915]
[1764882183295,12.96315999,3141.4,3140.6,3.84575]
[1764882183891,1.7681,3140.7,3140.6,3.84575]
[1764882184396,12.96315999,3141.4,3140.6,3.84575]
[1764882184999,1.8285,3140.7,3140.6,3.84575]
[1764882185300,12.96315999,3141.4,3140.6,3.84575]
[1764882186202,12.96315999,3141.4,3140.7,0.15915]
[1764882186593,40.8,3141.3,3140.7,0.15915]
[1764882187393,6.84775999,3141.4,3141.3,1.8499]
[1764882187596,6.84775999,3141.4,3141.3,3.7511]
[1764882187798,0.00335999,3141.4,3141.3,3.91022]
[1764882191401,1.14339646,3143.3,3141.3,3.91022]
[1764882191402,3.2078,3142.6,3142.5,4.96196]
[1764882191602,0.697,3143.5,3142.5,4.96196]
[1764882191603,3.2078,3143.0,3142.5,4.96196]
[1764882192006,1.8285,3142.6,3142.5,4.96196]
[1764882192303,1.83124494,3142.6,3142.5,4.96529731]
[1764882193398,0.00274494,3142.6,3142.5,4.96529731]
[1764882193706,3.2078,3143.0,3142.9,3.91014]
[1764882194390,6.8444,3143.0,3142.9,0.15904]
[1764882194591,6.84687792,3143.0,3142.9,0.15904]
[1764882194797,7.85267792,3143.0,3142.9,0.15904]
[1764882195405,3.21027792,3143.0,3142.9,3.91014]
[1764882195902,0.00247792,3143.0,3142.9,3.91014]
[1764882197007,1.83097792,3143.0,3142.9,3.91014]
[1764882197805,3.6366,3142.6,3142.5,0.00333731]
[1764882198006,1.8285,3142.6,3142.5,1.85323731]
[1764882198305,3.6366,3142.6,3142.5,0.00333731]
[1764882198901,6.8444,3142.6,3142.5,0.00333731]
[1764882199209,3.2078,3142.6,3142.5,4.80623731]
[1764882199410,0.00247792,3143.0,3142.5,4.80623731]
[1764882200409,1.8285,3142.6,3142.5,4.80623731]
[1764882201812,3.2078,3142.7,3142.5,4.80623731]
[1764882201813,3.2078,3142.7,3142.6,3.7511]
[1764882202010,3.2078,3142.7,3142.6,3.91015]
[1764882202309,0.00247792,3143.0,3142.9,3.91014]
[1764882203003,0.00247792,3143.0,3142.9,4.16591401]
[1764882203207,0.00247792,3143.0,3142.8,3.2078]
[1764882203208,0.00477912,3143.3,3143.2,3.91012]
[1764882204307,0.00769849,3143.3,3143.2,3.91012]
[1764882206823,3.2078,3144.4,3144.1,0.15897]
[1764882207022,3.6366,3144.2,3144.1,0.15897]
[1764882207522,3.6366,3144.2,3143.2,3.2078]
[1764882207523,3.6366,3143.5,3143.4,0.15901]
[1764882207720,3.63920142,3143.5,3143.4,0.15901]
[1764882208022,3.6366,3143.2,3143.1,0.00477136]
[1764882208209,3.6366,3143.2,3143.1,1.85467136]
[1764882208415,1.8285,3143.2,3143.1,3.75587136]
[1764882208615,3.6366,3143.2,3143.1,0.00477136]
[1764882209320,3.6366,3143.2,3143.1,1.85467136]
[1764882210220,3.6366,3143.2,3143.1,0.00477136]
[1764882211123,3.6366,3142.6,3142.5,0.00333731]
[1764882211820,1.8285,3141.6,3141.4,0.15911]
[1764882212022,0.9478,3142.5,3142.0,4.8029]
[1764882212023,3.2078,3142.1,3142.0,4.8029]
[1764882212319,6.8444,3142.1,3142.0,1.8499]
[1764882212524,6.8444,3142.1,3141.6,0.1591]
[1764882212727,6.8444,3142.1,3141.6,0.16189556]
[1764882212917,6.8444,3142.1,3142.0,1.8499]
[1764882213117,5.0363,3142.1,3142.0,4.8029]
[1764882213319,6.8444,3142.1,3142.0,2.9017]
[1764882215031,6.8444,3142.1,3141.8,0.15909]
[1764882215232,3.48,3141.9,3141.8,0.15909]
[1764882215529,3.48,3141.7,3141.6,0.00279556]
[1764882215830,6.6878,3141.7,3141.6,0.00279556]
[1764882218526,3.48,3141.4,3141.3,0.15912]
[1764882219126,3.2078,3141.7,3141.2,0.00477136]
[1764882219127,3.48,3141.3,3141.2,0.00477136]
[1764882219328,3.48,3140.6,3140.5,2.95926]
[1764882219630,1.73503937,3140.6,3140.5,4.60441873]
[1764882220429,3.48263937,3140.6,3140.5,1.91021873]
[1764882220635,3.48263937,3140.6,3140.5,4.53331873]
[1764882220636,0.00263937,3140.6,3140.5,4.53331873]
[1764882220834,1.73503937,3140.6,3140.5,4.53331873]
[1764882221531,0.00263937,3140.6,3140.5,4.53331873]
[1764882221733,1.73503937,3140.6,3140.5,4.53331873]
[1764882222125,0.00263937,3140.6,3140.5,4.53331873]
[1764882222730,3.2078,3141.7,3141.6,3.3907]
[1764882223425,4.9402,3141.7,3141.6,3.3907]
[1764882223634,4.94265285,3141.7,3141.6,3.3907]
[1764882224727,1.5,3141.6,3141.5,4.19121]
[1764882225127,3.0894,3141.6,3141.5,0.15911]
[1764882226137,1.5,3141.6,3141.5,4.15231]
[1764882226434,3.21025285,3141.7,3141.6,3.0514]
[1764882226624,6.29965285,3141.7,3141.6,1.5098]
[1764882226825,3.0894,3141.6,3141.5,2.61071]
[1764882227032,1.5,3141.6,3141.5,4.15231]
[1764882227425,3.21025285,3141.7,3141.6,3.0514]
[1764882227931,3.0894,3141.6,3141.5,2.61071]
[1764882230825,3.0894,3141.6,3141.5,0.15911]
[1764882234733,3.21025285,3141.7,3141.6,3.0514]
[1764882234927,4.71025285,3141.7,3141.6,3.0514]
[1764882235128,6.29965285,3141.7,3141.6,3.0514]
[1764882235330,6.29965285,3141.7,3141.6,1.5098]
[1764882235533,3.0894,3141.6,3141.5,2.61071]
[1764882236237,3.0894,3141.6,3141.5,4.15231]
[1764882236439,1.5,3141.6,3141.5,4.15231]
[1764882236635,3.0894,3140.7,3140.6,3.2078]
[1764882236837,3.0894,3140.6,3140.5,0.00275873]
[1764882238028,5.52146589,3140.6,3140.5,0.00275873]
[1764882238236,3.0894,3140.3,3139.7,0.1592]
[1764882239130,3.0894,3140.3,3140.2,0.00820072]
[1764882239933,3.0894,3140.3,3139.7,0.1592]
[1764882240136,3.0894,3139.7,3139.6,3.2078]
[1764882240840,3.0894,3139.7,3139.2,0.15923]
[1764882241045,3.0894,3139.3,3139.2,0.16148559]
[1764882241236,3.09257026,3139.3,3139.2,0.00225559]
[1764882242332,3.0894,3139.2,3139.1,0.00477136]
[1764882242646,6.2972,3139.2,3139.1,0.00477136]
[1764882242846,18.9812,3139.2,3139.1,0.00477136]
[1764882243044,3.0894,3138.3,3138.2,3.2078]
[1764882243245,3.0894,3138.3,3138.2,3.21137465]
[1764882243445,1.5,3138.3,3138.2,4.72117465]
[1764882243740,1.5,3138.3,3138.2,3.05497465]
[1764882245748,3.0894,3138.3,3138.2,1.51337465]
[1764882246245,1.5,3138.3,3138.2,1.51337465]
[1764882247642,3.2078,3138.4,3138.3,3.13697]
[1764882247845,0.00477905,3138.6,3138.5,3.802]
[1764882248450,0.00477905,3138.6,3138.5,3.96126]
[1764882248848,1.46167026,3139.3,3139.2,2.9777]
[1764882249046,0.00317026,3139.3,3139.2,2.9777]
[1764882249252,0.00317026,3139.3,3139.2,3.13693]
[1764882251554,0.00317026,3139.3,3138.5,0.8243]
[1764882251555,3.21097026,3139.3,3138.5,3.802]
[1764882251953,3.2078,3138.9,3138.8,2.9777]
[1764882252151,40.8,3139.2,3139.1,2.9777]
[1764882252344,3.21097026,3139.3,3139.2,2.9777]
[1764882252546,4.66947026,3139.3,3139.2,2.9777]
[1764882253254,4.66947026,3139.3,3139.2,1.4851]
[1764882253649,6.24757026,3139.3,3139.2,1.4851]
[1764882253852,3.0366,3139.1,3139.0,0.15924]
[1764882254049,1.46167026,3139.3,3139.2,1.4851]
[1764882254357,0.00317026,3139.3,3139.2,3.13693]
[1764882254558,0.00317026,3139.3,3139.2,6.34473]
[1764882260060,0.00477905,3139.6,3139.5,3.96121]
[1764882260261,7.7245,3140.3,3140.2,2.9777]
[1764882260658,3.2078,3140.6,3140.2,3.13688]
[1764882261250,3.2078,3140.6,3140.0,0.8243]
[1764882261251,3.21133298,3140.6,3140.5,3.802]
[1764882261457,3.21133298,3140.6,3140.5,3.80593875]
[1764882261968,0.00353298,3140.6,3140.5,3.96509875]
[1764882262159,3.04013298,3140.6,3140.5,0.16309875]
[1764882262362,6.24793298,3140.6,3140.5,0.16309875]
[1764882262552,3.04013298,3140.6,3140.5,0.16309875]
[1764882262756,3.04013298,3140.6,3140.5,1.64819875]
[1764882263064,3.04013298,3140.6,3140.5,3.96509875]
[1764882263065,0.00353298,3140.6,3140.5,3.96509875]
[1764882263861,3.04013298,3140.6,3140.5,0.16309875]
[1764882264065,6.24793298,3140.6,3140.5,0.00393875]
[1764882265266,3.0366,3140.2,3140.1,0.00477905]
[1764882265454,6.2444,3140.2,3140.1,0.00477905]
[1764882266164,6.2444,3140.2,3140.1,0.00708059]
[1764882266567,12.2444,3140.2,3140.1,0.00708059]
[1764882266867,12.2444,3140.2,3139.3,3.2078]
[1764882267161,3.2078,3139.8,3139.3,3.2078]
[1764882267367,4.6663,3139.8,3139.7,1.4851]
[1764882267557,4.6663,3139.8,3139.7,2.9777]
[1764882267758,4.6663,3139.8,3139.7,2.98013401]
[1764882267968,3.2078,3139.8,3139.7,3.13933401]
[1764882268171,6.2444,3140.2,3140.1,1.4851]
[1764882268465,3.0366,3139.8,3139.7,0.16163401]
[1764882269062,3.0366,3139.8,3139.7,1.64673401]
[1764882269261,1.4585,3139.8,3139.7,1.64673401]
[1764882269565,1.4585,3139.8,3139.7,3.13933401]
[1764882270163,3.0366,3139.8,3139.7,0.16163401]
[1764882270765,1.4585,3139.8,3139.7,1.64673401]
[1764882271159,3.0366,3139.8,3139.7,0.16163401]
[1764882272464,3.0366,3139.8,3139.4,0.00477905]
[1764882272465,3.891,3139.5,3139.4,0.00477905]
[1764882272863,3.0366,3139.5,3139.4,0.00477905]
[1764882273168,3.891,3139.5,3139.4,0.00477905]
[1764882273365,3.0366,3139.2,3139.1,0.15923]
[1764882273568,3.0366,3139.2,3139.1,0.16276184]
[1764882275565,3.2078,3139.7,3139.2,2.70763]
[1764882275765,4.5171,3139.7,3139.6,1.3174]
[1764882276671,5.8627,3139.7,3139.6,1.3174]
[1764882277172,2.6549,3139.6,3139.5,2.24001]
[1764882277367,2.6549,3139.6,3139.5,0.15921]
[1764882278265,1.3093,3139.6,3139.5,1.47661]
[1764882278471,2.6549,3139.6,3139.5,1.47661]
[1764882278666,3.2078,3139.7,3139.6,0.15921]
[1764882278867,5.8627,3139.7,3139.6,1.47661]
[1764882279068,5.8627,3139.7,3139.6,2.70761]
[1764882280075,4.5171,3139.7,3139.6,2.70761]
[1764882280276,1.3093,3139.9,3139.8,2.7076]
[1764882281077,3.2078,3140.2,3139.8,2.7076]
[1764882281273,1.3093,3139.9,3139.8,2.7076]
[1764882282578,2.6549,3139.9,3139.8,2.7076]
[1764882282772,1.3093,3139.9,3139.8,2.7076]
[1764882283466,4.5171,3140.2,3140.1,2.70758]
[1764882284484,5.8627,3140.2,3140.1,0.15918]
[1764882284678,3.2078,3140.2,3140.1,2.70758]
[1764882285273,3.21133298,3140.6,3140.5,3.3118]
[1764882285475,3.21133298,3140.6,3140.5,3.47096]
[1764882285873,4.52063298,3140.6,3140.5,3.47096]
[1764882286186,5.86623298,3140.6,3140.5,2.23996]
[1764882286478,5.86623298,3140.6,3140.5,0.15916]
[1764882288180,5.86623298,3140.6,3140.5,1.47656]
[1764882288480,5.86623298,3140.6,3140.5,3.47096]
[1764882288779,4.52063298,3140.6,3140.5,3.47096]
[1764882289580,3.21133298,3140.6,3140.5,3.47096]
[1764882290276,4.52063298,3140.6,3140.5,3.47096]